fUST/lending_fUST_20240218
["ID","MTS","AMOUNT","RATE_DAILY","PERIOD"]
[314352862,1708219842225,-834.04,0.00028219,2]
[314352863,1708219842234,-500.0,0.00028219,2]
[314352864,1708219842243,-757.05,0.00028219,2]
[314352865,1708219842253,-160.24275126,0.00028493,3]
[314352866,1708219842263,-500.0,0.00028493,2]
[314352867,1708219842273,-500.0,0.00028493,2]
[314352868,1708219842284,-579.769935,0.00028493,2]
[314352869,1708219842294,-500.0,0.00028493,2]
[314352870,1708219842304,-996.3,0.00028493,2]
[314352871,1708219842313,-500.0,0.00028493,2]
[314352872,1708219842323,-151.0,0.00028493,2]
[314352873,1708219842332,-737.95,0.00028493,2]
[314352874,1708219842342,-500.0,0.00028493,2]
[314352875,1708219842351,-795.42,0.00028493,2]
[314352876,1708219842361,-500.0,0.00028493,2]
[314352877,1708219842372,-500.0,0.00028493,2]
[314352878,1708219842381,-500.0,0.00028493,2]
[314352879,1708219842391,-500.0,0.00028493,2]
[314352880,1708219842401,-500.0,0.00028493,2]
[314352881,1708219842411,-552.351895,0.00028493,2]
[314352882,1708219842420,-500.0,0.00028493,2]
[314352883,1708219842430,-552.351895,0.00028493,2]
[314352884,1708219842440,-500.0,0.00028493,2]
[314352885,1708219842449,-151.0,0.00028493,2]
[314352886,1708219842459,-500.0,0.00028493,2]
[314352887,1708219842468,-3311.94,0.00028493,2]
[314352888,1708219842478,-500.0,0.00028493,2]
[314352889,1708219842487,-5672.11,0.00028493,2]
[314352890,1708219842497,-500.0,0.00028493,2]
[314352891,1708219842510,-982.99,0.00028493,2]
[314352892,1708219842520,-287.649879,0.00028493,2]
[314352893,1708219842530,-287.649879,0.00028493,2]
[314352895,1708219842540,-500.0,0.00028493,2]
[314352896,1708219842549,-5065.67,0.00028493,2]
[314352897,1708219842558,-500.0,0.00028493,2]
[314352898,1708219842568,-500.0,0.00028493,2]
[314352899,1708219842578,-1108.79,0.00028493,2]
[314352900,1708219842587,-3598.66,0.00028493,2]
[314352901,1708219842597,-500.0,0.00028493,2]
[314352902,1708219842606,-635.23390049,0.00028493,2]
[314352903,1708219842615,-3025.72,0.00028493,2]
[314352904,1708219842625,-500.0,0.00028493,2]
[314352905,1708219842635,-500.0,0.00028493,2]
[314352906,1708219842645,-526.47,0.00028493,2]
[314352907,1708219842654,-3151.09,0.00028493,2]
[314352909,1708219842663,-500.0,0.00028493,2]
[314352910,1708219842672,-985.24,0.00028493,2]
[314352911,1708219842682,-6154.74,0.00028493,2]
[314352912,1708219842691,-517.07370122,0.00028493,2]
[314352913,1708219842701,-986.14,0.00028493,2]
[314352914,1708219842710,-1817.36,0.00028493,2]
[314352915,1708219842719,-604.26,0.00028493,2]
[314352916,1708219842729,-500.0,0.00028493,2]
[314352917,1708219842738,-500.0,0.00028493,2]
[314352918,1708219842748,-573.25,0.00028493,2]
[314352919,1708219842757,-500.0,0.00028493,2]
[314352920,1708219842766,-500.0,0.00028493,2]
[314352921,1708219842776,-572.99,0.00028493,2]
[314352922,1708219842787,-834.04,0.00028493,2]
[314352923,1708219842797,-500.0,0.00028493,2]
[314352925,1708219842806,-757.05,0.00028493,2]
[314352927,1708219842816,-156.5002996,0.00028641,2]
[314352928,1708219842825,-621.32810059,0.00028667,2]
[314352929,1708219842835,-300.0,0.00028702,2]
[314352930,1708219842844,-1461.22,0.00028756,3]
[314352931,1708219842854,-500.0,0.00028767,2]
[314352932,1708219842863,-500.0,0.00028767,2]
[314352933,1708219842873,-500.0,0.00028767,2]
[314352934,1708219842883,-996.3,0.00028767,2]
[314352935,1708219842893,-500.0,0.00028767,2]
[314352936,1708219842971,-151.0,0.00028767,2]
[314352937,1708219842981,-737.95,0.00028767,2]
[314352938,1708219842991,-500.0,0.00028767,2]
[314352939,1708219843000,-795.42,0.00028767,2]
[314352940,1708219843010,-500.0,0.00028767,2]
[314352942,1708219843020,-500.0,0.00028767,2]
[314352943,1708219843030,-500.0,0.00028767,2]
[314352944,1708219843039,-223.7581717,0.00028767,2]
[314352945,1708219843048,-500.0,0.00028767,2]
[314352946,1708219843058,-500.0,0.00028767,2]
[314352947,1708219843067,-326.5492516,0.00028767,2]
[314352948,1708219843076,-186.88583443,0.00028767,2]
[314352949,1708219843086,-3311.94,0.00028767,2]
[314352950,1708219843095,-500.0,0.00028767,2]
[314352951,1708219843105,-5672.11,0.00028767,2]
[314352952,1708219843114,-500.0,0.00028767,2]
[314352953,1708219843123,-155.0,0.00028767,2]
[314352954,1708219843133,-982.99,0.00028767,2]
[314352955,1708219843142,-287.649879,0.00028767,2]
[314352956,1708219843152,-287.649879,0.00028767,2]
[314352957,1708219843161,-500.0,0.00028767,2]
[314352958,1708219843170,-5065.67,0.00028767,2]
[314352959,1708219843180,-500.0,0.00028767,2]
[314352960,1708219843189,-500.0,0.00028767,2]
[314352961,1708219843199,-1108.79,0.00028767,2]
[314352962,1708219843208,-3598.66,0.00028767,2]
[314352963,1708219843217,-500.0,0.00028767,2]
[314352964,1708219843226,-3025.72,0.00028767,2]
[314352965,1708219843235,-500.0,0.00028767,2]
[314352966,1708219843245,-500.0,0.00028767,2]
[314352967,1708219843254,-526.47,0.00028767,2]
[314352968,1708219843263,-3151.09,0.00028767,2]
[314352969,1708219843272,-500.0,0.00028767,2]
[314352970,1708219843283,-985.24,0.00028767,2]
[314352971,1708219843292,-6154.74,0.00028767,2]
[314352972,1708219843301,-986.14,0.00028767,2]
[314352973,1708219843310,-1817.36,0.00028767,2]
[314352974,1708219843319,-604.26,0.00028767,2]
[314352975,1708219843328,-500.0,0.00028767,2]
[314352976,1708219843338,-500.0,0.00028767,2]
[314352977,1708219843347,-573.25,0.00028767,2]
[314352978,1708219843357,-500.0,0.00028767,2]
[314352979,1708219843366,-500.0,0.00028767,2]
[314352980,1708219843375,-572.99,0.00028767,2]
[314352981,1708219843384,-834.04,0.00028767,2]
[314352982,1708219843394,-500.0,0.00028767,2]
[314352983,1708219843403,-757.05,0.00028767,2]
[314352984,1708219843412,-308.5222135,0.00028767,2]
[314352985,1708219843422,-552.351895,0.00028863,2]
[314352986,1708219843431,-552.351895,0.00028863,2]
[314352987,1708219843440,-621.32810056,0.00028997,2]
[314352988,1708219843450,-258.17561775,0.00029039,2]
[314352989,1708219843459,-620.59028027,0.00029041,2]
[314352990,1708219843468,-500.0,0.00029041,2]
[314352991,1708219843478,-151.0,0.00029041,2]
[314352992,1708219843487,-500.0,0.00029041,2]
[314352993,1708219843498,-996.3,0.00029041,2]
[314352994,1708219843509,-536.36244291,0.00029041,2]
[314352995,1708219843519,-737.95,0.00029041,2]
[314352996,1708219843528,-500.0,0.00029041,2]
[314352997,1708219843537,-795.42,0.00029041,2]
[314352998,1708219843546,-500.0,0.00029041,2]
[314352999,1708219843555,-500.0,0.00029041,2]
[314353000,1708219843565,-441.0,0.00029041,2]
[314353001,1708219843574,-500.0,0.00029041,2]
[314353002,1708219843583,-500.0,0.00029041,2]
[314353003,1708219843592,-3311.94,0.00029041,2]
[314353004,1708219843601,-500.0,0.00029041,2]
[314353005,1708219843610,-5672.11,0.00029041,2]
[314353006,1708219843620,-500.0,0.00029041,2]
[314353007,1708219843629,-982.99,0.00029041,2]
[314353008,1708219843638,-500.0,0.00029041,2]
[314353009,1708219843647,-5065.67,0.00029041,2]
[314353010,1708219843656,-633.21764016,0.00029041,2]
[314353011,1708219843665,-500.0,0.00029041,2]
[314353012,1708219843674,-1108.79,0.00029041,2]
[314353013,1708219843683,-3598.66,0.00029041,2]
[314353014,1708219843693,-500.0,0.00029041,2]
[314353015,1708219843703,-3025.72,0.00029041,2]
[314353016,1708219843712,-500.0,0.00029041,2]
[314353017,1708219843721,-500.0,0.00029041,2]
[314353018,1708219843730,-526.47,0.00029041,2]
[314353019,1708219843739,-3151.09,0.00029041,2]
[314353020,1708219843749,-500.0,0.00029041,2]
[314353021,1708219843758,-985.24,0.00029041,2]
[314353022,1708219843767,-6154.74,0.00029041,2]
[314353023,1708219843776,-986.14,0.00029041,2]
[314353024,1708219843788,-1817.36,0.00029041,2]
[314353025,1708219843798,-604.26,0.00029041,2]
[314353026,1708219843807,-500.0,0.00029041,2]
[314353027,1708219843816,-437.865938,0.00029041,2]
[314353028,1708219843825,-573.25,0.00029041,2]
[314353029,1708219843834,-500.0,0.00029041,2]
[314353030,1708219843844,-500.0,0.00029041,2]
[314353031,1708219843853,-572.99,0.00029041,2]
[314353032,1708219843862,-834.04,0.00029041,2]
[314353033,1708219843871,-500.0,0.00029041,2]
[314353034,1708219843880,-757.05,0.00029041,2]
[314353035,1708219843890,-266.359163,0.00029076,2]
[314353036,1708219843899,-153.488448,0.00029076,2]
[314353037,1708219843908,-165.291252,0.00029076,2]
[314353038,1708219843918,-300.0,0.00029185,2]
[314353039,1708219843927,-151.0,0.00029315,2]
[314353040,1708219843936,-500.0,0.00029315,2]
[314353041,1708219843945,-996.3,0.00029315,2]
[314353042,1708219843955,-151.0,0.00029315,2]
[314353043,1708219843964,-737.95,0.00029315,2]
[314353044,1708219843973,-500.0,0.00029315,2]
[314353045,1708219843982,-795.42,0.00029315,2]
[314353046,1708219843993,-483.486376,0.00029315,2]
[314353047,1708219844002,-500.0,0.00029315,2]
[314353048,1708219844012,-635.45957273,0.00029315,2]
[314353049,1708219844021,-552.351895,0.00029315,2]
[314353050,1708219844032,-552.351895,0.00029315,2]
[314353051,1708219844042,-500.0,0.00029315,2]
[314353052,1708219844052,-3311.94,0.00029315,2]
[314353053,1708219844061,-5672.11,0.00029315,2]
[314353054,1708219844070,-572.43,0.00029315,2]
[314353055,1708219844079,-982.99,0.00029315,2]
[314353056,1708219844089,-287.649879,0.00029315,2]
[314353057,1708219844098,-287.649879,0.00029315,2]
[314353058,1708219844107,-5065.67,0.00029315,2]
[314353059,1708219844117,-500.0,0.00029315,2]
[314353060,1708219844126,-1108.79,0.00029315,2]
[314353061,1708219844135,-3598.66,0.00029315,2]
[314353062,1708219844144,-500.0,0.00029315,2]
[314353063,1708219844153,-3025.72,0.00029315,2]
[314353064,1708219844162,-500.0,0.00029315,2]
[314353065,1708219844171,-500.0,0.00029315,2]
[314353066,1708219844180,-526.47,0.00029315,2]
[314353067,1708219844189,-3151.09,0.00029315,2]
[314353068,1708219844198,-500.0,0.00029315,2]
[314353069,1708219844207,-985.24,0.00029315,2]
[314353070,1708219844216,-6154.74,0.00029315,2]
[314353071,1708219844225,-986.14,0.00029315,2]
[314353072,1708219844234,-1817.36,0.00029315,2]
[314353073,1708219844243,-604.26,0.00029315,2]
[314353074,1708219844252,-500.0,0.00029315,2]
[314353075,1708219844261,-573.25,0.00029315,2]
[314353076,1708219844271,-500.0,0.00029315,2]
[314353077,1708219844280,-500.0,0.00029315,2]
[314353078,1708219844291,-572.99,0.00029315,2]
[314353079,1708219844300,-834.04,0.00029315,2]
[314353080,1708219844310,-500.0,0.00029315,2]
[314353081,1708219844319,-757.05,0.00029315,2]
[314353082,1708219844328,-463.24196701,0.00029321,2]
[314353083,1708219844337,-621.32810056,0.00029327,2]
[314353084,1708219844346,-306.976895,0.00029439,2]
[314353085,1708219844355,-266.359161,0.00029439,2]
[314353086,1708219844365,-5000.0,0.00029558,5]
[314353087,1708219844375,-500.0,0.00029589,2]
[314353088,1708219844383,-996.3,0.00029589,2]
[314353089,1708219844392,-151.0,0.00029589,2]
[314353090,1708219844402,-737.95,0.00029589,2]
[314353091,1708219844411,-795.42,0.00029589,2]
[314353092,1708219844420,-500.0,0.00029589,2]
[314353093,1708219844430,-552.351895,0.00029589,2]
[314353094,1708219844439,-552.351895,0.00029589,2]
[314353095,1708219844448,-500.0,0.00029589,2]
[314353096,1708219844458,-3311.94,0.00029589,2]
[314353097,1708219844467,-5672.11,0.00029589,2]
[314353098,1708219844477,-982.99,0.00029589,2]
[314353099,1708219844486,-287.649879,0.00029589,2]
[314353100,1708219844496,-287.649879,0.00029589,2]
[314353101,1708219844509,-5065.67,0.00029589,2]
[314353102,1708219844519,-500.0,0.00029589,2]
[314353103,1708219844528,-1108.79,0.00029589,2]
[314353104,1708219844541,-3598.66,0.00029589,2]
[314353105,1708219844550,-500.0,0.00029589,2]
[314353106,1708219844559,-3025.72,0.00029589,2]
[314353107,1708219844568,-500.0,0.00029589,2]
[314353108,1708219844578,-500.0,0.00029589,2]
[314353109,1708219844587,-526.47,0.00029589,2]
[314353110,1708219844596,-3151.09,0.00029589,2]
[314353111,1708219844606,-500.0,0.00029589,2]
[314353112,1708219844615,-985.24,0.00029589,2]
[314353113,1708219844624,-6154.74,0.00029589,2]
[314353114,1708219844700,-986.14,0.00029589,2]
[314353115,1708219844709,-1817.36,0.00029589,2]
[314353116,1708219844718,-604.26,0.00029589,2]
[314353117,1708219844727,-500.0,0.00029589,2]
[314353118,1708219844736,-573.25,0.00029589,2]
[314353119,1708219844745,-500.0,0.00029589,2]
[314353120,1708219844754,-500.0,0.00029589,2]
[314353121,1708219844764,-572.99,0.00029589,2]
[314353122,1708219844773,-834.04,0.00029589,2]
[314353123,1708219844783,-500.0,0.00029589,2]
[314353124,1708219844792,-757.05,0.00029589,2]
[314353125,1708219844801,-200.3193593,0.00029589,2]
[314353126,1708219844810,-200.3193593,0.00029589,2]
[314353127,1708219844820,-200.3193593,0.00029589,2]
[314353128,1708219844829,-400.3715917,0.00029589,2]
[314353129,1708219844838,-202.7712353,0.00029589,2]
[314353130,1708219844847,-621.32810056,0.00029657,2]
[314353131,1708219844856,-300.0,0.00029669,2]
[314353132,1708219844865,-306.976895,0.00029803,2]
[314353133,1708219844874,-266.359161,0.00029803,2]
[314353134,1708219844883,-500.0,0.00029862,2]
[314353135,1708219844892,-500.0,0.00029862,2]
[314353136,1708219844901,-507.82169593,0.00029862,2]
[314353137,1708219844910,-257.20191588,0.00029862,2]
[314353138,1708219844920,-559.02821389,0.00029862,2]
[314353139,1708219844930,-500.0,0.00029862,2]
[314353140,1708219844939,-500.0,0.00029862,2]
[314353141,1708219844948,-500.0,0.00029863,2]
[314353142,1708219844957,-996.3,0.00029863,2]
[314353143,1708219844966,-151.0,0.00029863,2]
[314353144,1708219844975,-737.95,0.00029863,2]
[314353145,1708219844984,-795.42,0.00029863,2]
[314353146,1708219844993,-266.81,0.00029863,2]
[314353147,1708219845002,-552.351895,0.00029863,2]
[314353148,1708219845012,-500.0,0.00029863,2]
[314353149,1708219845021,-552.351895,0.00029863,2]
[314353150,1708219845030,-3311.94,0.00029863,2]
[314353151,1708219845041,-5672.11,0.00029863,2]
[314353152,1708219845050,-982.99,0.00029863,2]
[314353153,1708219845058,-5065.67,0.00029863,2]
[314353154,1708219845068,-500.0,0.00029863,2]
[314353155,1708219845077,-1108.79,0.00029863,2]
[314353156,1708219845086,-3598.66,0.00029863,2]
[314353157,1708219845095,-500.0,0.00029863,2]
[314353158,1708219845104,-3025.72,0.00029863,2]
[314353159,1708219845113,-500.0,0.00029863,2]
[314353160,1708219845122,-500.0,0.00029863,2]
[314353161,1708219845131,-526.47,0.00029863,2]
[314353162,1708219845140,-3151.09,0.00029863,2]
[314353163,1708219845149,-500.0,0.00029863,2]
[314353164,1708219845159,-985.24,0.00029863,2]
[314353165,1708219845168,-6154.74,0.00029863,2]
[314353166,1708219845177,-986.14,0.00029863,2]
[314353167,1708219845187,-1817.36,0.00029863,2]
[314353168,1708219845196,-604.26,0.00029863,2]
[314353169,1708219845205,-500.0,0.00029863,2]
[314353170,1708219845215,-573.25,0.00029863,2]
[314353171,1708219845224,-500.0,0.00029863,2]
[314353172,1708219845233,-500.0,0.00029863,2]
[314353173,1708219845242,-572.99,0.00029863,2]
[314353174,1708219845252,-834.04,0.00029863,2]
[314353175,1708219845261,-500.0,0.00029863,2]
[314353176,1708219845270,-757.05,0.00029863,2]
[314353177,1708219845280,-152.1625319,0.000299,2]
[314353178,1708219845291,-21851.93296127,0.000299,2]
[314353179,1708219845518,-550.16,0.00027387,3]
[314353180,1708219845527,-500.0,0.00027397,2]
[314353181,1708219845537,-514.49949234,0.00027397,2]
[314353182,1708219845549,-500.0,0.00027671,2]
[314353184,1708219845558,-216.21692916,0.00027945,2]
[314353185,1708219845569,-258.18041724,0.00027945,2]
[314353189,1708219845885,-501.04120554,0.00026025,3]
[314353191,1708219845894,-39.78656744,0.00027945,2]
[314353192,1708219845903,-200.3193593,0.00029589,2]
[314353193,1708219845912,-2061.36,0.0002989,3]
[314353194,1708219845921,-36359.6454603,0.000299,2]
[314353195,1708219845930,-287.649879,0.000299,2]
[314353196,1708219845939,-287.649879,0.000299,2]
[314353197,1708219845948,-621.32810056,0.00029987,2]
[314353198,1708219845957,-2100.05,0.00029999,2]
[314353199,1708219845967,-2100.05,0.00029999,2]
[314353200,1708219845976,-2100.05,0.00029999,2]
[314353201,1708219845985,-2100.05,0.00029999,2]
[314353202,1708219845994,-2100.05,0.00029999,2]
[314353203,1708219846003,-151.0,0.00029999,2]
[314353204,1708219846012,-552.351895,0.00029999,2]
[314353205,1708219846021,-21518.04959808,0.0003,7]
[314353206,1708219846033,-35154.65808785,0.0003,7]
[314353207,1708219846046,-2739.14018378,0.0003,7]
[314353238,1708221032100,-501.04120554,0.00022451,3]
[314353239,1708221032110,-273.55227487,0.00022451,2]
[314353241,1708221032119,-258.33133698,0.00022452,2]
[314353243,1708221032128,-155.01860223,0.00022453,2]
[314353245,1708221032137,-327.20509372,0.00022453,2]
[314353346,1708221038080,-3231.73093943,0.00022453,2]
[314353347,1708221038090,-155.01860223,0.000225,2]
[314353348,1708221038100,-3615.2958197,0.0002335,2]
[314353349,1708221038110,-1933.763654,0.00023443,2]
[314353350,1708221038119,-167.56066,0.00024658,2]
[314353351,1708221038128,-170.3162349,0.00024796,2]
[314353352,1708221038138,-192.23051261,0.00025321,2]
[314353353,1708221038147,-12052.14386646,0.00025421,2]
[314353354,1708221038156,-8000.94496389,0.00025421,2]
[314353355,1708221038165,-3302.91333029,0.00025421,2]
[314353356,1708221038177,-845.41510347,0.00025421,2]
[314353357,1708221038186,-1142.14460195,0.0002546,2]
[314353358,1708221038199,-2813.89966602,0.0002546,2]
[314353359,1708221038208,-167.56066,0.00025619,2]
[314353360,1708221038307,-292.4529531,0.00026066,2]
[314353361,1708221038322,-771.89967316,0.00026066,2]
[314353362,1708221038332,-167.56066,0.00026581,2]
[314353363,1708221038343,-210.37024421,0.00027206,2]
[314353364,1708221038352,-49468.03973283,0.00027297,2]
[314353365,1708221038361,-533.02609839,0.00027306,2]
[314353366,1708221038370,-301.70994808,0.00027306,2]
[314353367,1708221038379,-153.19852052,0.00027306,2]
[314353368,1708221038388,-246.12226462,0.00027306,2]
[314353369,1708221038398,-210.37024418,0.00027366,2]
[314353370,1708221038407,-642.21763131,0.00027369,2]
[314353371,1708221038417,-243.53,0.00027386,3]
[314353372,1708221038426,-730.63,0.00027387,3]
[314353373,1708221038435,-500.0,0.00027396,2]
[314353374,1708221038444,-211.14532521,0.00027396,2]
[314353375,1708221038453,-500.0,0.00027396,2]
[314353376,1708221038462,-500.0,0.00027396,2]
[314353377,1708221038471,-229.0374257,0.00027396,2]
[314353378,1708221038480,-500.0,0.00027396,2]
[314353379,1708221038489,-420.60383771,0.00027396,2]
[314353380,1708221038499,-500.0,0.00027396,2]
[314353381,1708221038508,-608.31356988,0.00027396,2]
[314353382,1708221038518,-504.08897137,0.00027397,2]
[314353383,1708221038527,-502.00295055,0.00027397,2]
[314353384,1708221038539,-502.19323529,0.00027397,2]
[314353385,1708221038549,-508.06060873,0.00027397,2]
[314353386,1708221038558,-502.19154516,0.00027397,2]
[314353387,1708221038568,-500.0,0.00027397,2]
[314353388,1708221038577,-163.43020933,0.00027397,2]
[314353389,1708221038586,-500.61743273,0.00027397,2]
[314353390,1708221038595,-500.0,0.00027397,2]
[314353391,1708221038604,-1335.78,0.00027397,2]
[314353392,1708221038613,-500.0,0.00027397,2]
[314353393,1708221038622,-637.19327698,0.00027397,2]
[314353394,1708221038630,-545.81829257,0.00027397,2]
[314353395,1708221038639,-500.0,0.00027397,2]
[314353396,1708221038649,-502.66995576,0.00027397,2]
[314353397,1708221038658,-473.97420167,0.00027397,2]
[314353398,1708221038667,-500.0,0.00027397,2]
[314353399,1708221038676,-509.86317656,0.00027397,2]
[314353400,1708221038685,-504.05742979,0.00027397,2]
[314353401,1708221038695,-500.0,0.00027397,2]
[314353402,1708221038704,-500.0,0.00027397,2]
[314353403,1708221038712,-500.0,0.00027397,2]
[314353404,1708221038722,-502.71973002,0.00027397,2]
[314353405,1708221038731,-505.51520445,0.00027397,2]
[314353406,1708221038741,-500.0,0.00027397,2]
[314353407,1708221038750,-503.59705263,0.00027397,2]
[314353408,1708221038760,-506.50776374,0.00027397,2]
[314353409,1708221038770,-500.96762978,0.00027397,2]
[314353410,1708221038779,-500.0,0.00027397,2]
[314353411,1708221038789,-365.60552747,0.00027397,2]
[314353412,1708221038799,-400.16018658,0.00027397,2]
[314353413,1708221038808,-500.0,0.00027397,2]
[314353414,1708221038819,-500.0,0.00027397,2]
[314353415,1708221038828,-500.0,0.00027397,2]
[314353416,1708221038838,-500.0,0.00027397,2]
[314353417,1708221038848,-175.03894802,0.00027397,2]
[314353418,1708221038857,-500.0,0.00027397,2]
[314353419,1708221038866,-500.0,0.00027397,2]
[314353420,1708221038878,-929.69,0.00027397,2]
[314353421,1708221038888,-500.0,0.00027397,2]
[314353422,1708221038898,-995.98,0.00027397,2]
[314353423,1708221038907,-504.85822056,0.00027397,2]
[314353424,1708221038916,-200.31096625,0.00027397,2]
[314353425,1708221038925,-500.0,0.00027397,2]
[314353426,1708221038934,-500.0,0.00027397,2]
[314353427,1708221038944,-599.48895298,0.00027397,30]
[314353428,1708221038954,-500.0,0.00027397,2]
[314353429,1708221038965,-500.0,0.00027397,2]
[314353430,1708221038974,-500.0,0.00027397,2]
[314353431,1708221038983,-632.05941567,0.00027397,2]
[314353432,1708221038993,-512.49386522,0.00027397,2]
[314353433,1708221039002,-500.0,0.00027397,2]
[314353434,1708221039012,-614.24,0.00027397,2]
[314353435,1708221039021,-500.0,0.00027397,2]
[314353436,1708221039030,-500.0,0.00027397,2]
[314353437,1708221039040,-503.17924915,0.00027397,2]
[314353438,1708221039049,-500.0,0.00027397,2]
[314353439,1708221039059,-500.0,0.00027397,2]
[314353440,1708221039069,-500.0,0.00027397,2]
[314353441,1708221039078,-873.8,0.00027397,2]
[314353442,1708221039087,-500.0,0.00027397,2]
[314353443,1708221039096,-500.0,0.00027397,2]
[314353444,1708221039105,-500.0,0.00027397,2]
[314353445,1708221039114,-512.71412566,0.00027397,2]
[314353446,1708221039123,-500.0,0.00027397,2]
[314353447,1708221039133,-500.0,0.00027397,2]
[314353448,1708221039141,-500.0,0.00027397,2]
[314353449,1708221039150,-500.0,0.00027397,2]
[314353450,1708221039160,-504.33605534,0.00027397,2]
[314353451,1708221039169,-4698.83,0.00027397,2]
[314353452,1708221039178,-500.0,0.00027397,2]
[314353453,1708221039187,-6161.14,0.00027397,2]
[314353454,1708221039197,-7751.8,0.00027397,2]
[314353455,1708221039207,-500.0,0.00027397,2]
[314353456,1708221039216,-500.0,0.00027397,2]
[314353457,1708221039225,-500.0,0.00027397,2]
[314353458,1708221039234,-500.0,0.00027397,2]
[314353459,1708221039243,-500.0,0.00027397,2]
[314353460,1708221039254,-1200.87,0.00027397,2]
[314353461,1708221039263,-500.0,0.00027397,2]
[314353462,1708221039272,-500.0,0.00027397,2]
[314353463,1708221039281,-500.0,0.00027397,2]
[314353464,1708221039291,-500.0,0.00027397,2]
[314353465,1708221039299,-500.0,0.00027397,2]
[314353466,1708221039309,-500.0,0.00027397,2]
[314353467,1708221039318,-500.0,0.00027397,2]
[314353468,1708221039327,-500.0,0.00027397,2]
[314353469,1708221039337,-500.0,0.00027397,2]
[314353470,1708221039346,-500.0,0.00027397,2]
[314353471,1708221039355,-203.19528398,0.00027397,2]
[314353472,1708221039364,-500.0,0.00027397,2]
[314353473,1708221039373,-500.0,0.00027397,2]
[314353474,1708221039382,-500.0,0.00027397,2]
[314353475,1708221039391,-500.0,0.00027397,2]
[314353476,1708221039400,-420.19864913,0.00027397,2]
[314353477,1708221039409,-500.0,0.00027397,2]
[314353478,1708221039418,-1311.99,0.00027397,2]
[314353479,1708221039427,-155.0,0.00027397,2]
[314353480,1708221039436,-517.11,0.00027397,2]
[314353481,1708221039445,-4571.96,0.00027397,2]
[314353482,1708221039455,-500.0,0.00027397,2]
[314353483,1708221039464,-562.18416376,0.00027397,2]
[314353484,1708221039474,-500.0,0.00027397,2]
[314353485,1708221039483,-507.35320599,0.00027397,2]
[314353486,1708221039492,-7929.32,0.00027397,2]
[314353487,1708221039502,-572.45,0.00027397,2]
[314353488,1708221039511,-506.07889962,0.00027397,2]
[314353489,1708221039520,-4165.57,0.00027397,2]
[314353490,1708221039530,-514.07343172,0.00027397,2]
[314353491,1708221039539,-706.44,0.00027397,2]
[314353492,1708221039547,-4638.26,0.00027397,2]
[314353493,1708221039556,-1212.76,0.00027397,2]
[314353494,1708221039566,-639.44,0.00027397,2]
[314353495,1708221039576,-500.0,0.00027397,2]
[314353496,1708221039584,-1418.28,0.00027397,2]
[314353497,1708221039593,-500.0,0.00027397,2]
[314353498,1708221039602,-1665.95,0.00027397,2]
[314353499,1708221039612,-500.0,0.00027397,2]
[314353500,1708221039621,-504.21232668,0.00027397,2]
[314353501,1708221039630,-807.71,0.00027397,2]
[314353502,1708221039639,-856.08,0.00027397,2]
[314353503,1708221039649,-511.47305257,0.00027397,2]
[314353504,1708221039658,-500.0,0.00027397,2]